bitfinex-derivatives/quotes_SOLF0:USTF0_20251209
["timestamp","ask_amount","ask_price","bid_price","bid_amount"]
[1765292453484,6.83523676,132.69,132.66,0.05489163]
[1765292453785,105.56403676,132.69,132.66,0.05489163]
[1765292454091,0.05213676,132.69,132.66,0.05489163]
[1765292455287,6.83523676,132.69,132.66,0.05489163]
[1765292455788,6.7836,132.68,132.66,0.05489163]
[1765292456286,112.3028,132.68,132.66,0.05489163]
[1765292457393,6.7849,132.65,132.57,76.96701887]
[1765292457580,6.7849,132.65,132.57,12.98701887]
[1765292457980,6.7857,132.64,132.57,6.7889]
[1765292458183,6.7857,132.64,132.55,6.7896]
[1765292458386,0.05308718,132.61,132.58,0.05797266]
[1765292462294,111.82930605,132.61,132.58,0.05797266]
[1765292462687,0.05308718,132.61,132.58,0.05797266]
[1765292463087,6.25120605,132.61,132.58,0.05797266]
[1765292463283,6.7875,132.6,132.58,0.05797266]
[1765292464886,6.789,132.57,132.49,63.96]
[1765292465894,6.789,132.57,132.51,6.7919]
[1765292466092,0.05737367,132.54,132.52,0.04931575]
[1765292466291,7.00926861,132.64,132.52,0.04931575]
[1765292466599,5.57457392,132.62,132.51,105.6516]
[1765292466784,175.70091887,132.63,132.51,105.6516]
[1765292466991,175.70091887,132.63,132.53,105.6378]
[1765292466992,12.36084042,132.62,132.53,105.6378]
[1765292467195,118.74668748,132.66,132.54,105.6281]
[1765292467396,0.05282818,132.61,132.59,0.05025046]
[1765292467593,0.0504684,132.61,132.59,0.05025046]
[1765292468098,63.94,132.68,132.59,0.05025046]
[1765292468293,5.57866666,132.67,132.58,105.5985]
[1765292468494,63.94,132.68,132.59,105.5881]
[1765292468693,63.94,132.68,132.62,6.7863]
[1765292468894,63.94,132.68,132.58,105.5985]
[1765292469092,0.04909868,132.64,132.62,0.05515217]
[1765292469293,0.0548705,132.64,132.62,0.05515217]
[1765292469895,6.8403705,132.64,132.62,0.05515217]
[1765292470492,0.0548705,132.64,132.62,0.05515217]
[1765292471601,0.0548705,132.64,132.62,6.84125217]
[1765292475293,0.0548705,132.64,132.62,8.34125217]
[1765292475499,68.03373787,132.74,132.64,105.5475]
[1765292475703,5.58604523,132.73,132.65,105.5426]
[1765292476007,4.11373787,132.74,132.72,112.2676]
[1765292476188,3.787e-05,132.74,132.72,176.2276]
[1765292476392,7.00926861,132.85,132.72,176.2276]
[1765292476393,5.26180145,132.85,132.74,105.4644]
[1765292476589,5.57756222,132.84,132.76,105.4553]
[1765292476796,0.0530101,132.8,132.78,0.04760938]
[1765292476992,0.0524245,132.8,132.78,0.05554985]
[1765292477407,0.0524245,132.8,132.78,6.83344985]
[1765292477605,0.0524245,132.8,132.78,0.05554985]
[1765292478197,0.0524245,132.8,132.78,1.55554985]
[1765292478509,111.54011887,132.91,132.8,105.4201]
[1765292478690,7.00926861,132.92,132.82,105.4064]
[1765292478691,5.56374644,132.9,132.82,105.4064]
[1765292478894,105.4005,132.83,132.71,105.491]
[1765292479094,105.4084,132.82,132.71,105.491]
[1765292479305,6.19811887,132.83,132.74,105.4709]
[1765292479493,0.03111258,132.8,132.77,0.04999891]
[1765292479806,0.03111258,132.8,132.77,0.05052244]
[1765292481507,0.03111258,132.8,132.77,105.49562244]
[1765292481815,111.52901887,132.92,132.8,105.4236]
[1765292482104,105.3447,132.9,132.8,63.92]
[1765292482305,6.7735,132.88,132.8,63.92]
[1765292482496,105.3605,132.88,132.8,63.92]
[1765292482912,105.3858,132.85,132.83,0.04965732]
[1765292483206,105.4003,132.83,132.73,17.24]
[1765292483597,6.7762,132.82,132.73,24.0205]
[1765292484000,0.04965732,132.79,132.76,0.04927084]
[1765292485805,0.04965732,132.79,132.76,6.82807084]
[1765292486097,0.04965732,132.79,132.76,0.04927084]
[1765292487203,0.04965732,132.79,132.77,112.2251]
[1765292487406,13.78246861,132.88,132.77,112.2251]
[1765292487407,6.7732,132.88,132.78,169.3335]
[1765292487605,111.53881887,132.91,132.8,105.4235]
[1765292487798,105.3524,132.89,132.78,63.9]
[1765292488004,105.3479,132.9,132.78,63.9]
[1765292488305,110.90396313,132.89,132.78,63.9]
[1765292488508,105.356,132.89,132.82,0.04927434]
[1765292488706,6.7739,132.87,132.82,0.04927434]
[1765292488909,111.53881887,132.91,132.82,0.04927434]
[1765292489103,5.54534605,132.9,132.85,0.05516835]
[1765292489303,111.53881887,132.91,132.85,0.05516835]
[1765292489507,5.54317086,132.9,132.85,0.05516835]
[1765292489712,6.7734,132.88,132.85,0.05516835]
[1765292489909,110.89854499,132.89,132.85,0.05516835]
[1765292490113,117.10237905,132.88,132.85,0.05516835]
[1765292490310,111.55871887,132.88,132.85,0.05516835]
[1765292490614,105.377,132.86,132.78,63.9]
[1765292490812,7.00926861,132.9,132.78,63.9]
[1765292491015,118.53148748,132.93,132.81,105.4131]
[1765292491212,110.86861052,132.92,132.8,105.4201]
[1765292491509,5.53921052,132.91,132.81,105.415]
[1765292491817,0.05060891,132.87,132.85,0.04771421]
[1765292492117,0.0505327,132.87,132.85,0.05110648]
[1765292494208,6.8246327,132.87,132.85,0.05110648]
[1765292494408,0.0505327,132.87,132.85,0.05110648]
[1765292495607,6.8243327,132.87,132.85,0.05110648]
[1765292495812,0.0505327,132.87,132.85,0.05110648]
[1765292496629,0.0505327,132.87,132.85,6.82560648]
[1765292496810,6.19811887,132.94,132.85,0.05110648]
[1765292497011,75.54038831,132.96,132.85,105.3796]
[1765292497224,70.01811887,132.96,132.85,105.3796]
[1765292497623,175.31851887,132.96,132.84,169.2488]
[1765292497819,180.83670696,132.96,132.89,0.05362573]
[1765292498023,6.7699,132.95,132.89,0.05362573]
[1765292498519,63.82,132.96,132.89,0.05362573]
[1765292499224,6.7692,132.96,132.89,6.82612573]
[1765292499423,5.51495357,132.99,132.9,105.3422]
[1765292499617,6.19811887,133.01,132.93,0.05365915]
[1765292499809,6.19811887,133.01,132.96,0.05565998]
[1765292500216,105.2529,133.02,132.96,0.05565998]
[1765292500527,105.2899,132.97,132.86,63.86]
[1765292500726,105.2763,132.99,132.89,6.7724]
[1765292501021,105.2763,132.99,132.86,63.86]
[1765292501022,6.19811887,132.98,132.86,63.86]
[1765292501224,105.2904,132.97,132.86,63.86]
[1765292501423,0.05243075,132.93,132.9,0.05033165]
[1765292504127,0.05243075,132.93,132.9,105.39103165]
[1765292504325,0.05243075,132.93,132.91,6.7714]
[1765292504620,169.0619,133.03,132.91,105.3355]
[1765292504827,63.82,133.03,132.92,105.3282]
[1765292505425,5.49728307,133.05,132.95,111.50291887]
[1765292505623,105.2099,133.07,132.95,105.3048]
[1765292505824,105.2207,133.06,132.99,0.05061762]
[1765292506024,6.19811887,133.07,133.01,0.04881218]
[1765292506228,105.2038,133.08,133.03,0.04900855]
[1765292506229,111.40191887,133.08,133.03,0.04900855]
[1765292506422,111.40191887,133.08,132.96,105.2936]
[1765292506423,4.06856031,133.1,133.0,105.2608]
[1765292506631,4.06856031,133.1,132.98,169.1143]
[1765292506632,4.06856031,133.1,133.04,0.05371883]
[1765292507324,115.45287918,133.1,133.04,0.05371883]
[1765292507531,105.2034,133.08,133.04,0.05371883]
[1765292507718,63.8,133.08,133.04,0.05371883]
[1765292507926,105.2022,133.08,133.04,0.05371883]
[1765292508315,6.7633,133.08,133.04,0.05371883]
[1765292508728,4.06856031,133.1,133.04,0.05371883]
[1765292510526,105.1949,133.09,133.04,0.05371883]
[1765292510828,6.7633,133.08,133.04,0.05371883]
[1765292511026,6.19811887,133.09,133.04,0.05371883]
[1765292511233,4.06856031,133.1,133.04,105.28371883]
[1765292511417,4.06856031,133.1,133.05,105.2238]
[1765292511834,4.06856031,133.1,133.06,105.2174]
[1765292512031,4.06856031,133.1,133.07,0.05313717]
[1765292514134,6.19811887,133.17,133.08,6.7625]
[1765292514443,105.1074,133.2,133.11,0.04910802]
[1765292514636,105.1175,133.19,133.14,0.05148685]
[1765292514932,105.1232,133.18,133.14,0.05148685]
[1765292515134,105.1347,133.17,133.14,0.05148685]
[1765292515329,6.7597,133.15,133.09,63.78]
[1765292515526,105.1552,133.14,133.01,105.2541]
[1765292515737,105.1552,133.14,133.01,169.0341]
[1765292515938,6.7607,133.13,133.03,105.2405]
[1765292516130,175.07761887,133.16,133.03,105.2405]
[1765292516331,0.04915905,133.11,133.08,0.04831864]
[1765292516528,0.04915905,133.11,133.08,0.05318194]
[1765292516730,105.22805905,133.11,133.01,63.78]
[1765292517039,105.1789,133.11,133.01,63.78]
[1765292517442,6.763,133.08,133.01,63.78]
[1765292517941,0.04880051,133.06,133.03,0.05758925]
[1765292519743,70.5006,133.13,133.04,6.7647]
[1765292520041,5.70546911,133.12,133.04,6.7647]
[1765292520238,5.70546911,133.11,133.05,105.225]
[1765292520443,16.37415515,133.16,133.06,105.2135]
[1765292520635,5.71133897,133.15,133.06,105.214]
[1765292520834,5.71133897,133.15,133.05,105.225]
[1765292520835,0.05282869,133.12,133.1,6.7617]
[1765292521040,6.83601638,133.21,133.12,105.169]
[1765292521338,6.83601638,133.25,133.15,105.1458]
[1765292521529,63.72,133.27,133.17,105.1307]
[1765292521725,5.70170171,133.26,133.15,105.1453]
[1765292521926,5.70170171,133.25,133.19,0.04830243]
[1765292522148,63.72,133.27,133.21,0.04751595]
[1765292523148,16.37415515,133.33,133.23,105.0826]
[1765292523449,5.69093303,133.32,133.27,0.0533216]
[1765292523651,6.83601638,133.35,133.28,0.04756458]
[1765292523946,174.26985844,133.39,133.3,0.0570189]
[1765292524135,168.6823,133.39,133.27,105.0485]
[1765292524334,168.6823,133.39,133.33,0.05050063]
[1765292524335,168.6827,133.39,133.33,0.05050063]
[1765292524847,63.72,133.39,133.33,0.05050063]
[1765292525048,111.74831638,133.45,133.33,0.05050063]
[1765292525049,5.5743136,133.44,133.33,0.05050063]
[1765292525251,4.02212781,133.47,133.37,0.0531716]
[1765292525432,4.02212781,133.47,133.37,111.7687716]
[1765292525631,4.02212781,133.47,133.35,104.9857]
[1765292525845,4.02212781,133.47,133.36,104.9776]
[1765292526150,4.02212781,133.47,133.41,0.0488451]
[1765292527736,4.02212781,133.47,133.43,104.9227]
[1765292528037,4.02212781,133.47,133.42,63.7]
[1765292528236,4.02212781,133.47,133.41,104.9889451]
[1765292528438,4.02212781,133.47,133.41,104.9875451]
[1765292528634,4.02212781,133.47,133.41,0.0488451]
[1765292529042,108.91992781,133.47,133.41,0.0488451]
[1765292529240,4.02212781,133.47,133.41,0.0488451]
[1765292529943,108.91682781,133.47,133.41,0.0488451]
[1765292530133,4.02212781,133.47,133.41,0.0488451]
[1765292531042,1e-08,133.47,133.45,209.8174]
[1765292531230,1e-08,133.47,133.46,63.68]
[1765292531635,104.7886,133.61,133.47,104.8902]
[1765292531841,104.7646,133.64,133.53,0.05248595]
[1765292531842,177.95153877,133.63,133.53,0.05248595]
[1765292532143,104.742,133.67,133.57,0.05473787]
[1765292532332,104.742,133.67,133.61,0.0485475]
[1765292532530,104.7255,133.69,133.61,0.0485475]
[1765292533246,63.62,133.72,133.61,0.0485475]
[1765292533437,104.7091,133.71,133.59,104.7964]
[1765292533741,104.6948,133.73,133.65,0.05564033]
[1765292534042,104.7226,133.69,133.65,0.05564033]
[1765292534248,54.7181,133.7,133.66,0.04882253]
[1765292534434,104.7513,133.66,133.56,63.62]
[1765292534635,111.473,133.67,133.56,63.62]
[1765292534849,111.4741,133.67,133.56,63.62]
[1765292535037,9.53813877,133.69,133.56,168.4369]
[1765292535240,104.6956,133.73,133.6,104.7872]
[1765292535536,0.04873883,133.68,133.65,0.05583581]
[1765292535738,0.04873883,133.68,133.65,0.04812701]
[1765292535739,0.05283221,133.68,133.65,0.04812701]
[1765292535943,114.17673877,133.8,133.67,104.7335]
[1765292536144,104.6473,133.79,133.66,104.7406]
[1765292536335,104.6631,133.77,133.65,104.7516]
[1765292536538,104.6455,133.79,133.67,104.7321]
[1765292536742,104.6376,133.8,133.67,104.7321]
[1765292536958,104.6376,133.8,133.72,0.05164951]
[1765292537252,104.6793,133.75,133.63,63.6]
[1765292537442,104.6683,133.76,133.63,168.3658]
[1765292537640,104.6317,133.81,133.69,104.7187]
[1765292537838,104.6317,133.81,133.68,104.7264]
[1765292537839,104.6289,133.81,133.68,104.7264]
[1765292538035,104.6009,133.85,133.73,104.6878]
[1765292538233,104.6009,133.85,133.72,104.6927]
[1765292538234,104.5628,133.9,133.77,104.6542]
[1765292538449,0.04999196,133.8,133.77,0.04937324]
[1765292539142,1.30056993,133.89,133.8,104.634]
[1765292539344,111.2353,133.96,133.84,104.6013]
[1765292539540,63.52,133.99,133.86,104.5857]
[1765292539733,63.52,133.99,133.88,104.5701]
[1765292540144,104.5222,133.95,133.83,62.0]
[1765292540342,104.5417,133.93,133.8,104.6314]
[1765292540546,104.5302,133.94,133.81,104.6221]
[1765292540747,104.5302,133.94,133.79,104.6394]
[1765292540748,104.5434,133.92,133.79,104.6394]
[1765292540951,111.2501,133.94,133.82,104.6173]
[1765292541136,111.2501,133.94,133.81,104.6228]
[1765292541137,104.5399,133.93,133.8,104.6329]
[1765292541343,0.05264224,133.88,133.85,0.0540243]
[1765292541538,0.04930479,133.88,133.85,0.05101261]
[1765292542837,104.4741,134.01,133.88,104.5732]
[1765292543043,104.453,134.04,133.91,111.266]
[1765292543345,104.4413,134.05,133.92,166.5392]
[1765292543555,104.4279,134.07,133.94,104.5225]
[1765292543749,104.4279,134.07,133.94,111.2457]
[1765292543950,74.4279,134.07,133.99,0.05412853]
[1765292544147,104.4134,134.09,133.99,0.05412853]
[1765292544345,104.4282,134.07,134.03,0.0535366]
[1765292544538,104.4282,134.07,133.94,104.5262]
[1765292544744,104.4518,134.04,133.99,0.05169741]
[1765292544945,104.4518,134.04,134.0,0.05077778]
[1765292544946,104.4618,134.03,134.0,0.05077778]
[1765292545145,104.4618,134.03,133.9,168.0364]
[1765292545146,6.7152,134.03,133.91,111.2695]
[1765292545342,104.4757,134.01,133.9,63.48]
[1765292545656,1.29918614,134.02,133.9,104.5553]
[1765292545849,111.1671,134.04,133.91,104.5461]
[1765292546047,0.05316531,133.99,133.96,0.05302856]
[1765292546246,104.4064,134.1,133.98,104.4918]
[1765292546247,6.7119,134.1,133.98,104.4918]
[1765292546444,6.7119,134.1,133.98,104.4925]
[1765292546750,111.1142,134.1,133.97,104.498]
[1765292546946,111.0909,134.13,133.99,104.4874]
[1765292547148,104.4319,134.07,133.94,104.5223]
[1765292547348,104.4319,134.07,133.91,104.5455]
[1765292547349,104.4521,134.04,133.91,104.5455]
[1765292547552,104.448,134.05,133.92,104.5389]
[1765292547748,104.448,134.05,133.96,0.05245132]
[1765292547749,104.444,134.05,133.96,0.05245132]
[1765292547959,104.4364,134.06,133.99,0.05148028]
[1765292548151,104.4356,134.06,133.99,0.05148028]
[1765292548351,63.4,134.08,133.99,0.05148028]
[1765292548651,63.4,134.08,134.02,0.04956486]
[1765292548843,104.3808,134.13,134.02,0.04956486]
[1765292549049,104.3896,134.12,133.99,111.1995]
[1765292549358,3.93051776,134.21,134.09,104.4039]
[1765292549653,3.93051776,134.21,134.14,0.05039147]
[1765292549654,111.0324,134.2,134.14,0.05039147]
[1765292549857,6.7065,134.2,134.14,0.05039147]
[1765292550053,3.93051776,134.21,134.14,0.05039147]
[1765292550455,104.3512,134.17,134.04,104.4441]
[1765292550758,104.3633,134.15,134.03,104.4493]
[1765292550948,104.3604,134.16,134.03,104.4524]
[1765292551150,111.1081,134.11,133.98,104.491]
[1765292551349,104.3815,134.13,134.0,111.1918]
[1765292551548,104.3441,134.18,134.05,104.4367]
[1765292551752,111.0556,134.17,134.05,63.38]
[1765292551952,104.313,134.22,134.09,104.4067]
[1765292552254,108.25071776,134.21,134.07,104.4247]
[1765292552456,108.25071776,134.21,134.11,104.3902]
[1765292552457,3.93051776,134.21,134.11,104.3902]
[1765292552658,3.93051776,134.21,134.15,0.05219544]
[1765292552868,104.3436,134.18,134.05,104.4371]
[1765292553161,63.34,134.19,134.06,104.4295]
[1765292553366,3.93051776,134.21,134.1,104.3989]
[1765292553656,3.93051776,134.21,134.13,104.3777]
[1765292554161,0.04797439,134.18,134.16,0.04944552]
[1765292554358,104.39197439,134.18,134.06,63.36]
[1765292554549,104.3271,134.2,134.08,104.4146]
[1765292554750,3.93051776,134.21,134.09,104.4028]
[1765292554954,3.93051776,134.21,134.09,111.1183]
[1765292555150,3.93051776,134.21,134.12,104.3823]
[1765292555448,9.785e-05,134.21,134.19,215.3692]
[1765292555754,167.487,134.38,134.25,104.2783]
[1765292555955,110.9017,134.36,134.23,104.2998]
[1765292556351,0.04625491,134.31,134.28,104.30958225]
[1765292556556,104.146,134.43,134.3,104.2435]
[1765292556756,104.1499,134.43,134.31,63.32]
[1765292556957,104.127,134.46,134.33,104.216]
[1765292557155,104.1027,134.49,134.36,104.1952]
[1765292557358,104.0772,134.52,134.38,104.1766]
[1765292557552,104.0877,134.51,134.38,104.1766]
[1765292557752,104.0724,134.53,134.44,0.05539409]
[1765292558153,6.6904,134.53,134.4,166.1659]
[1765292558462,104.0485,134.56,134.43,104.1423]
[1765292558663,3.8853402,134.57,134.51,104.0804]
[1765292558860,3.8853402,134.57,134.53,104.0622]
[1765292559067,3.8853402,134.57,134.52,63.3]
[1765292559359,3.8853402,134.57,134.53,0.05677672]
[1765292559558,3.8853402,134.57,134.54,63.28]
[1765292559949,3.8853402,134.57,134.53,0.05677672]
[1765292560154,3.8853402,134.57,134.47,63.28]
[1765292560567,104.0631,134.54,134.41,110.8529]
[1765292560750,104.0956,134.5,134.37,167.4472]
[1765292561057,104.0875,134.51,134.38,104.1798]
[1765292561250,0.04806418,134.45,134.42,0.05598991]
[1765292561449,104.1328,134.45,134.32,104.2289]
[1765292561648,104.1408,134.44,134.29,110.9525]
[1765292561859,104.1643,134.41,134.28,63.24]
[1765292562056,110.8707,134.4,134.27,104.2645]
[1765292562260,104.1741,134.4,134.27,104.2656]
[1765292562465,0.05373097,134.35,134.33,208.446]
[1765292562655,104.0874,134.51,134.38,104.1778]
[1765292562856,167.24,134.52,134.39,104.1717]
[1765292563157,104.071,134.53,134.39,104.1717]
[1765292563158,104.071,134.53,134.4,104.1622]
[1765292563356,104.0637,134.54,134.41,104.1577]
[1765292563555,104.0798,134.52,134.39,110.8676]
[1765292563753,0.0558058,134.48,134.46,0.05545175]
[1765292564365,0.0558058,134.48,134.35,130.94417247]
[1765292564366,105.6466058,134.48,134.35,130.94417247]
[1765292564553,107.9249402,134.57,134.43,104.1414]
[1765292564757,104.0475,134.56,134.43,110.8364]
[1765292564960,104.0476,134.56,134.43,104.1414]
[1765292565168,107.9249402,134.57,134.44,110.8295]
[1765292565358,0.05609139,134.52,134.49,0.05084467]
[1765292565864,3.8853402,134.57,134.51,104.0798]
[1765292566064,3.8853402,134.57,134.47,130.85187247]
[1765292566360,107.9253402,134.57,134.44,104.1333]
[1765292566552,3.8853402,134.57,134.48,104.1035]
[1765292566758,3.8853402,134.57,134.53,104.064]
[1765292566953,0.05317084,134.56,134.54,0.05686381]
[1765292567158,0.05317084,134.56,134.54,0.05082564]
[1765292567354,104.0569,134.55,134.41,104.1563]
[1765292567560,104.0465,134.56,134.43,104.1402]
[1765292567865,3.8853402,134.57,134.51,104.079]
[1765292568058,3.8853402,134.57,134.5,130.82837247]
[1765292568258,3.8853402,134.57,134.51,104.0795]
[1765292568460,0.05345734,134.55,134.52,0.05627924]
[1765292568868,0.05345734,134.55,134.47,104.1115]
[1765292569170,104.0506,134.56,134.44,104.1329]
[1765292569353,114.6155402,134.57,134.45,110.8196]
[1765292569553,3.8853402,134.57,134.5,104.0871]
[1765292569775,0.05624955,134.55,134.52,0.05433934]
[1765292570555,3.8853402,134.57,134.52,0.05433934]
[1765292570556,4.02e-05,134.57,134.55,104.0495]
[1765292570761,4.02e-05,134.57,134.54,104.0603]
[1765292570962,4.02e-05,134.57,134.52,0.05433934]
[1765292571162,4.02e-05,134.57,134.55,104.0488]
[1765292571567,0.05589241,134.57,134.56,104.0448]
[1765292571875,0.05589241,134.57,134.52,26.79541181]
[1765292571876,103.9939,134.63,134.49,104.0943]
[1765292572076,103.9939,134.63,134.43,104.142]
[1765292572077,104.0566,134.55,134.43,104.142]
[1765292572260,104.0743,134.53,134.4,104.1628]
[1765292572465,104.0457,134.56,134.42,104.1488]
[1765292572783,104.0457,134.56,134.37,104.19]
[1765292572784,0.04840555,134.5,134.48,0.05404341]
[1765292573070,6.38738478,134.85,134.48,0.05404341]
[1765292573071,103.9247,134.72,134.59,110.7056]
[1765292573296,103.9485,134.69,134.56,130.78517247]
[1765292573576,103.9321,134.71,134.57,110.7206]
[1765292573759,0.0504477,134.64,134.61,0.05066372]
[1765292573966,104.0385477,134.64,134.51,104.0812]
[1765292574273,104.0385477,134.64,134.49,104.0951]
[1765292574274,104.0016,134.62,134.49,104.0951]
[1765292574476,104.0221,134.59,134.46,104.1181]
[1765292574659,104.0016,134.62,134.46,104.1181]
[1765292574660,104.0016,134.62,134.48,104.104]
[1765292574868,104.0349,134.58,134.45,104.1261]
[1765292575067,0.05589523,134.53,134.5,0.05462232]
[1765292576476,104.0807,134.52,134.39,104.1719]
[1765292576668,110.7843,134.5,134.37,208.3751]
[1765292576967,104.1195,134.47,134.35,6.699]
[1765292577174,104.1333,134.45,134.32,167.3066]
[1765292577368,104.1418,134.44,134.32,63.08]
[1765292577570,0.04783648,134.39,134.37,0.04823048]
[1765292577768,63.04,134.43,134.3,110.942]
[1765292577969,104.1342,134.45,134.32,104.2263]
[1765292578168,167.1437,134.49,134.36,104.1968]
[1765292578379,104.1077,134.48,134.35,104.2006]
[1765292578567,104.1025,134.49,134.36,110.8979]
[1765292578764,0.05393912,134.44,134.41,0.05167952]
[1765292579278,1.53393912,134.44,134.41,0.05167952]
[1765292579573,0.05393912,134.44,134.41,0.05167952]
[1765292579978,112.37143912,134.44,134.31,167.3168]
[1765292580271,104.1729,134.4,134.27,131.01057247]
[1765292580474,104.2113,134.35,134.21,104.3125]
[1765292580772,63.04,134.41,134.17,104.3433]
[1765292580773,104.242,134.31,134.17,104.3433]
[1765292581071,0.04914219,134.25,134.23,0.05169368]
[1765292581282,104.2101,134.35,134.23,6.75659368]
[1765292581583,110.8605,134.41,134.28,104.2585]
[1765292581768,104.1642,134.41,134.27,119.66490441]
[1765292581972,63.04,134.41,134.29,104.2522]
[1765292582467,0.05476302,134.36,134.34,0.05008692]
[1765292582777,0.05082747,134.36,134.34,0.05008692]
[1765292583578,63.06,134.44,134.34,0.05008692]
[1765292583775,167.2027,134.44,134.31,104.2356]
[1765292583980,104.1738,134.4,134.27,104.2674]
[1765292584182,119.53980441,134.44,134.31,104.2355]
[1765292584382,0.05491296,134.39,134.36,0.05266115]
[1765292585379,168.77441296,134.39,134.26,104.2727]
[1765292585572,6.6969,134.4,134.27,110.9713]
[1765292585773,63.06,134.41,134.33,104.2194]
[1765292585980,104.156,134.42,134.29,104.2491]
[1765292586184,104.1484,134.43,134.34,0.05121969]
[1765292586375,104.203,134.36,134.23,104.2964]
[1765292586579,104.203,134.36,134.2,104.3213]
[1765292586580,167.2703,134.35,134.22,104.3055]
[1765292586879,104.2516,134.3,134.16,104.3503]
[1765292587076,104.2587,134.29,134.16,104.3503]
[1765292587276,104.2886,134.25,134.12,104.3842]
[1765292587476,104.2936,134.24,134.11,104.3905]
[1765292587680,63.06,134.25,134.14,6.7094]
[1765292587880,167.3456,134.25,134.11,104.3905]
[1765292588077,0.05650828,134.21,134.18,0.05557283]
[1765292588273,0.05650828,134.21,134.08,104.4134]
[1765292588274,0.05577685,134.21,134.08,104.4134]
[1765292588593,104.3092,134.22,134.08,104.4134]
[1765292588794,104.3283,134.2,134.08,6.7122]
[1765292588980,119.74270441,134.18,134.05,104.4405]
[1765292589285,104.3436,134.18,134.05,104.4396]
[1765292589491,0.05309618,134.13,134.1,0.04953708]
[1765292589987,105.93499618,134.13,133.99,104.4848]
[1765292590180,15.39910441,134.18,133.96,140.51910441]
[1765292590181,104.3099,134.22,134.09,104.4071]
[1765292590379,104.3099,134.22,134.09,104.4092]
[1765292590582,104.3267,134.2,134.08,15.39910441]
[1765292590782,104.3195,134.21,134.08,119.81240441]
[1765292590978,0.05290531,134.16,134.13,0.05033581]
[1765292591379,105.91220531,134.16,134.03,104.4526]
[1765292591573,104.3361,134.19,134.06,104.4298]
[1765292591882,63.1,134.18,134.05,104.4346]
[1765292592086,104.3816,134.13,134.0,104.4754]
[1765292592283,111.1082,134.11,133.99,6.7166]
[1765292592479,0.05173176,134.08,134.05,0.0534256]
[1765292592678,63.1,134.1,133.98,104.4916]
[1765292592880,0.05004548,134.08,134.05,0.05177696]
[1765292593181,0.05466241,134.08,134.05,104.4872017]
[1765292593382,0.05466241,134.08,134.05,0.0477017]
[1765292594185,104.3733,134.14,134.05,0.0477017]
[1765292594384,104.3704,134.15,134.02,104.4582]
[1765292594583,111.0644,134.16,134.03,104.4516]
[1765292594884,104.3319,134.19,134.07,119.81780441]
[1765292595086,0.04735068,134.14,134.12,0.05009944]
[1765292595274,0.05099778,134.14,134.12,0.05009944]
[1765292596178,0.05099778,134.14,134.01,104.4675]
[1765292596179,1.55099778,134.14,134.01,104.4675]
[1765292596484,104.4086,134.1,133.97,104.5003]
[1765292596684,63.14,134.09,133.97,104.5003]
[1765292596885,174.2635,134.09,133.96,104.5074]
[1765292597088,0.05282762,134.04,134.01,0.04712945]
[1765292598083,104.3825,134.13,134.01,0.04712945]
[1765292598386,319.40464691,134.2,134.02,104.4601]
[1765292598387,104.3401,134.18,134.02,104.4601]
[1765292598588,111.0754,134.15,134.02,111.1755]
[1765292598886,104.3349,134.19,134.05,104.4377]
[1765292599084,167.4749,134.19,134.06,104.4313]
[1765292599290,0.05272953,134.13,134.11,0.05597198]
[1765292599480,0.05002102,134.13,134.11,0.0565071]
[1765292600084,0.05002102,134.13,134.01,63.2]
[1765292600284,104.3883,134.12,134.01,63.2]
[1765292600485,104.3812,134.13,134.01,63.2]
[1765292600882,6.7105,134.12,134.01,63.2]
[1765292601083,0.04749777,134.08,134.05,0.05191859]
[1765292601684,0.04749777,134.08,133.96,104.5068]
[1765292601885,104.415,134.09,133.96,166.5068]
[1765292602191,104.4037,134.1,133.97,104.4991]
[1765292602386,104.4133,134.09,133.96,62.0]
[1765292602594,0.05284203,134.04,134.01,0.05305387]
[1765292602787,104.4574,134.03,133.9,104.5531]
[1765292603092,104.4771,134.01,133.88,104.5692]
[1765292603386,104.4839,134.0,133.87,104.5746]
[1765292603600,104.4378,134.06,133.92,104.538]